bitfinex/quotes_ETHUSD_20220218
["timestamp","ask_amount","ask_price","bid_price","bid_amount"]
[1645207758133,0.90548,2763.4,2762.2,1.81085]
[1645207758332,3.5,2763.3,2761.8,1.81093]
[1645207758532,0.1809,2763.3,2761.8,1.81093]
[1645207758732,0.90557,2763.1,2761.9,1.81101]
[1645207758933,0.1809,2763.0,2761.8,2.7166616]
[1645207759132,0.59660845,2762.9,2761.8,2.7166616]
[1645207759340,0.59660845,2762.9,2761.5,0.1809]
[1645207759341,3.5,2762.8,2761.5,0.1809]
[1645207759535,3.5,2762.8,2761.5,0.144816]
[1645207759536,14.43,2762.8,2761.5,0.144816]
[1645207759734,1.81185,2762.5,2761.1,3.224]
[1645207759936,3.5,2762.4,2761.0,1.5857]
[1645207760180,3.5,2762.4,2761.6,0.58688262]
[1645207760181,0.69372452,2762.3,2761.6,0.58688262]
[1645207760381,3.5,2762.6,2761.6,0.58688262]
[1645207760581,3.6809,2762.9,2761.6,0.58688262]
[1645207760779,0.1809,2762.6,2761.6,0.58688262]
[1645207760982,0.90586,2762.4,2761.6,0.58688262]
[1645207761280,1.99254,2762.7,2761.6,0.58688262]
[1645207761480,1.99254,2762.7,2762.1,0.66736082]
[1645207761680,1.81164,2762.7,2762.1,0.66736082]
[1645207761881,1.81164,2762.7,2761.4,0.90576]
[1645207761882,0.1809,2762.6,2761.4,0.90576]
[1645207762083,0.90573,2762.8,2761.5,0.9057217]
[1645207762282,0.1809,2763.0,2761.6,0.90569]
[1645207762485,0.07693331,2762.9,2761.5,2.7169517]
[1645207762680,0.1809,2762.8,2761.5,2.7169517]
[1645207762882,0.68819334,2762.7,2762.0,0.6743385]
[1645207763282,0.90574,2762.6,2762.0,0.6743385]
[1645207764032,0.90574,2762.6,2761.2,1.81144]
[1645207764226,0.90587,2762.2,2761.2,1.81144]
[1645207764428,14.50695156,2762.1,2760.9,0.1809]
[1645207764628,0.25785156,2762.0,2760.3,4.99283275]
[1645207764827,0.25785156,2762.0,2760.3,1.65312817]
[1645207764828,0.07695156,2761.9,2760.3,1.65312817]
[1645207765028,0.51544715,2761.6,2760.9,0.68103609]
[1645207765227,0.90612,2761.4,2760.5,0.01060458]
[1645207765427,3.6809,2761.3,2760.5,0.00897849]
[1645207765629,0.1809,2761.3,2760.5,0.00897849]
[1645207765829,0.1811,2762.1,2760.5,0.00897849]
[1645207766027,0.07695841,2762.0,2760.5,0.00897849]
[1645207766425,0.07695841,2762.0,2760.2,0.1809]
[1645207766626,0.78198688,2762.0,2761.3,0.51298388]
[1645207766828,0.07695834,2761.9,2761.3,0.51298388]
[1645207767026,0.70502847,2762.0,2761.3,0.51298388]
[1645207767326,1.61100847,2762.0,2761.3,0.51298388]
[1645207767586,1.61100847,2762.0,2761.3,0.46298388]
[1645207767776,1.61100847,2762.0,2760.7,0.9059678]
[1645207767977,0.0769579,2761.9,2760.4,0.1809]
[1645207768176,0.0769579,2761.9,2760.3,0.144871]
[1645207768177,0.1809,2761.8,2760.3,0.144871]
[1645207768377,0.90612,2761.5,2760.2,1.81214]
[1645207768676,0.00273245,2761.5,2760.3,0.3]
[1645207768878,0.53056734,2761.3,2760.6,0.63252764]
[1645207769279,0.00273245,2761.5,2760.6,0.63252764]
[1645207769877,0.0027324,2761.2,2760.6,0.63252764]
[1645207770279,0.0027324,2761.2,2760.2,1.906144]
[1645207770478,0.0027324,2761.2,2760.2,2.20615]
[1645207770681,0.0027324,2761.2,2760.2,0.90615]
[1645207770877,0.0027324,2761.2,2760.3,0.3]
[1645207771080,0.90624,2761.1,2760.2,0.144891]
[1645207771324,0.1811,2761.0,2760.0,0.7163918]
[1645207771529,0.90624,2761.1,2760.0,0.7163918]
[1645207771725,0.90624,2761.1,2759.7,0.91918945]
[1645207771726,0.5464995,2760.8,2759.7,0.91918945]
[1645207772025,0.5464995,2760.8,2759.7,0.01292565]
[1645207772026,0.1811,2760.7,2759.7,0.01292565]
[1645207772228,4.5875,2760.7,2759.7,0.01292565]
[1645207772524,4.5875,2760.7,2759.7,0.01292566]
[1645207772729,0.7102967,2759.8,2759.7,0.01292566]
[1645207772927,3.62636,2760.8,2759.7,0.01292566]
[1645207772928,3.6811,2760.4,2759.7,0.01292566]
[1645207773127,3.6811,2760.7,2759.7,0.01292566]
[1645207773324,0.9066,2760.4,2759.7,0.01292566]
[1645207773526,4.4066,2760.4,2759.7,0.01292566]
[1645207773724,4.4066,2760.4,2759.6,0.00363893]
[1645207773925,0.59655503,2760.1,2759.6,0.00363893]
[1645207774126,5.31319,2760.4,2759.6,0.0007392]
[1645207774127,3.5,2760.4,2759.6,0.0007392]
[1645207774326,1.99429,2760.5,2759.6,0.0007392]
[1645207775197,1.99429,2760.5,2760.2,0.51019221]
[1645207775198,0.90645,2760.4,2760.2,0.51019221]
[1645207775411,0.90645,2760.4,2759.6,0.0007392]
[1645207775412,0.1811,2760.9,2759.6,0.0007392]
[1645207775605,0.1811,2761.1,2759.7,1.81242]
[1645207775797,0.1811,2761.3,2759.8,0.3]
[1645207776096,0.1811,2761.3,2759.7,1.81242]
[1645207776097,11.00953555,2761.2,2759.7,1.81242]
[1645207776298,0.60973043,2760.7,2760.0,0.53663105]
[1645207777498,0.60973043,2760.7,2760.0,1.44285455]
[1645207777697,0.60973043,2760.7,2760.0,0.53663105]
[1645207778200,0.1811,2761.1,2760.0,0.53663105]
[1645207778398,0.1811,2761.1,2760.0,3.25489105]
[1645207778602,0.00256566,2761.2,2760.1,0.90621]
[1645207778828,0.00256566,2761.2,2760.1,2.8123238]
[1645207779028,0.00256566,2761.2,2760.1,1.0]
[1645207779430,0.90877566,2761.2,2760.0,1.53663105]
[1645207779630,1.58612644,2761.2,2760.0,0.53663105]
[1645207779930,1.58612644,2761.2,2760.5,0.57626099]
[1645207780130,1.58612644,2761.2,2760.5,0.45426099]
[1645207780331,0.1811,2761.3,2760.5,0.45426099]
[1645207780532,0.54097915,2761.6,2760.5,0.45426099]
[1645207780533,0.72207915,2761.6,2760.5,0.45426099]
[1645207780730,0.00257782,2761.2,2760.5,0.45426099]
[1645207781030,0.00257782,2761.2,2759.8,0.9062885]
[1645207781431,0.1811,2761.1,2759.7,0.01291787]
[1645207781632,0.00257782,2761.2,2759.7,0.01291787]
[1645207781831,0.90626,2761.1,2759.9,1.81237]
[1645207782031,0.68063016,2760.8,2760.2,0.90618]
[1645207782233,3.5,2760.7,2759.7,0.01416774]
[1645207782587,1.08767,2760.6,2759.7,0.01416774]
[1645207782980,0.9066,2760.4,2759.7,0.01416774]
[1645207783182,0.9066,2760.4,2759.6,0.01490731]
[1645207783381,0.9066,2760.4,2759.8,0.50298947]
[1645207783582,0.1811,2760.8,2759.8,0.50298947]
[1645207783782,0.00259698,2761.2,2759.8,0.50298947]
[1645207783783,0.17958944,2761.1,2759.8,0.50298947]
[1645207784180,0.17958944,2761.1,2759.8,2.31558797]
[1645207784181,1.08585944,2761.1,2759.8,2.31558797]
[1645207784381,0.90627,2761.1,2759.8,1.40928797]
[1645207784581,0.59227842,2761.0,2760.3,0.64481094]
[1645207785184,0.90635,2760.8,2759.8,0.9063002]
[1645207785385,0.90635,2760.8,2759.8,0.81568999]
[1645207785582,0.90635,2760.8,2759.7,1.01277015]
[1645207785984,4.09227842,2761.0,2759.7,0.01277015]
[1645207785985,3.5,2760.9,2759.7,0.01277015]
[1645207786184,0.59227842,2761.0,2759.7,0.01277015]
[1645207786185,1.47340027,2760.4,2759.7,0.01277015]
[1645207786434,3.6811,2760.3,2759.7,0.01277015]
[1645207786829,3.6811,2760.3,2759.7,0.01277016]
[1645207787730,0.61102309,2759.9,2759.7,0.01277016]
[1645207787935,11.54102309,2759.9,2759.7,0.01277016]
[1645207788132,0.1811,2759.8,2759.6,0.0007392]
[1645207788334,0.1811,2759.8,2758.3,1.5547]
[1645207788335,0.90703,2759.5,2758.7,0.00289973]
[1645207788532,0.90703,2759.5,2758.4,0.00289973]
[1645207788533,0.1812,2759.4,2758.4,0.00289973]
[1645207788731,0.1812,2759.4,2758.0,0.00289973]
[1645207789029,4.41102309,2759.9,2758.4,0.59759956]
[1645207789030,0.56037053,2759.1,2758.4,0.59759956]
[1645207789231,0.1812,2759.8,2758.5,0.90959973]
[1645207789431,0.1812,2759.8,2758.6,0.00289973]
[1645207789931,15.93,2759.6,2757.9,0.00289973]
[1645207790178,10.93,2759.4,2757.9,0.00289973]
[1645207790378,15.0282,2759.3,2757.9,0.00289973]
[1645207790581,4.0982,2759.3,2758.6,0.145012]
[1645207790778,1.42798391,2759.2,2758.1,0.57289613]
[1645207790982,1.42798391,2759.2,2758.2,0.00289973]
[1645207790983,0.1812,2759.1,2758.2,0.00289973]
[1645207791779,0.1812,2759.1,2757.7,0.90985973]
[1645207791979,1.99516,2759.1,2757.8,0.00289973]
[1645207792180,3.5,2759.0,2757.8,0.00289973]
[1645207792381,1.99516,2759.1,2757.8,0.53937476]
[1645207792779,1.99516,2759.1,2758.4,0.01439567]
[1645207792780,2.90218,2759.1,2758.4,0.01439567]
[1645207792980,2.89072608,2759.1,2758.4,0.01439567]
[1645207793183,0.90697,2758.9,2758.4,0.01439567]
[1645207794029,0.90697,2758.9,2757.8,0.53937476]
[1645207794030,0.59196308,2758.7,2757.8,0.51037735]
[1645207794230,0.59196308,2758.7,2757.9,0.0028845]
[1645207796234,0.00238167,2758.4,2757.9,0.0028845]
[1645207796440,0.00238167,2758.4,2757.8,1.41730735]
[1645207796733,0.00238167,2758.4,2757.9,0.0028845]
[1645207796933,0.00238167,2758.4,2757.7,0.0028845]
[1645207797133,0.00238167,2758.4,2757.3,1.4840845]
[1645207797335,0.00238167,2758.4,2757.5,0.9070525]
[1645207797589,0.00259577,2758.4,2757.6,0.01359912]
[1645207797982,0.00259577,2758.4,2757.6,5.73059912]
[1645207798181,0.00259577,2758.4,2757.7,5.1840845]
[1645207798382,0.00259577,2758.4,2757.8,0.4198845]
[1645207798582,0.00259577,2758.4,2757.9,0.1812]
[1645207798883,0.085156,2759.5,2759.0,0.63598689]
[1645207799080,0.085156,2759.5,2759.0,0.58598689]
[1645207799280,0.085156,2759.5,2758.5,1.81329]
[1645207799482,0.085156,2759.5,2758.6,0.0028845]
[1645207799881,0.085156,2759.5,2758.7,0.90665]
[1645207800084,0.085156,2759.5,2758.8,0.0028845]
[1645207800085,0.00261375,2759.4,2758.8,0.0028845]
[1645207800382,0.00261375,2759.4,2758.5,1.81329]
[1645207800383,0.00261375,2759.4,2758.7,0.56910006]
[1645207800584,0.00261375,2759.4,2758.8,0.0028845]
[1645207801185,0.00261377,2759.2,2758.8,0.0028845]
[1645207801436,0.00261377,2759.2,2758.7,1.47577006]
[1645207801630,0.00261377,2759.2,2758.7,0.56910006]
[1645207802031,0.00261377,2759.2,2758.7,0.51910006]
[1645207802233,0.00261377,2759.2,2758.7,1.42576026]
[1645207802429,0.085156,2759.5,2758.7,1.42576026]
[1645207802430,0.00257996,2759.1,2758.7,1.42576026]
[1645207802635,0.00257996,2759.1,2758.8,0.0028845]
[1645207802831,0.00257996,2759.1,2758.7,1.42576026]
[1645207803032,0.00257996,2759.1,2758.7,2.33243026]
[1645207803633,0.55396073,2759.9,2758.7,2.33243026]
[1645207803634,0.00257866,2759.0,2758.7,2.33243026]
[1645207803833,0.00257866,2759.0,2758.8,0.0028845]
[1645207804037,0.00257866,2759.0,2758.7,2.33243026]
[1645207804333,0.00257866,2759.0,2758.7,1.42577006]
[1645207804534,0.00257866,2759.0,2758.7,0.51910006]
[1645207805086,0.00257866,2759.0,2758.4,8.45e-05]
[1645207805285,0.00257866,2759.0,2757.2,0.56498368]
[1645207805286,0.01278339,2758.7,2757.2,0.56498368]
[1645207805484,0.16885516,2758.3,2757.3,0.00287039]
[1645207805883,0.16885516,2758.3,2757.3,9.10779082]
[1645207806083,0.16885516,2758.3,2757.9,0.59198071]
[1645207806487,0.16885516,2758.3,2757.9,0.54198071]
[1645207807083,0.16885516,2758.3,2757.5,0.00287039]
[1645207807284,0.00240829,2758.2,2757.5,0.00287039]
[1645207807482,0.00240829,2758.2,2757.5,1.00287039]
[1645207807683,0.00240829,2758.2,2757.6,0.907]
[1645207807885,0.00240829,2758.2,2757.6,1.81685649]
[1645207808084,0.00240829,2758.2,2757.7,1.813754]
[1645207808384,0.16885516,2758.3,2757.7,4.627534]
[1645207808385,0.00240829,2758.0,2757.7,4.627534]
[1645207808585,0.00240829,2758.0,2757.8,0.63756195]
[1645207808843,0.00240829,2758.0,2757.9,0.90688]
[1645207809040,0.1812,2759.7,2758.0,2.5]
[1645207809243,0.55396073,2759.9,2758.1,3.84680057]
[1645207809244,0.1812,2759.9,2758.1,3.84680057]
[1645207809441,0.55316526,2760.0,2758.4,1.81318]
[1645207809643,0.55316526,2760.0,2758.8,0.90645]
[1645207809644,0.08164961,2759.9,2758.8,0.90645]
[1645207809939,0.55316526,2760.0,2759.5,0.69649431]
[1645207810140,0.08163005,2759.9,2759.6,0.9064044]
[1645207810340,0.1812,2760.5,2759.6,0.9064044]
[1645207810539,0.08163037,2760.4,2759.6,0.9064044]
[1645207810740,0.1811,2760.3,2759.6,0.9064044]
[1645207810941,0.65310154,2760.6,2759.6,1.8128344]
[1645207810942,0.00262272,2759.9,2759.6,1.8128344]
[1645207812242,2.46482272,2759.3,2758.7,0.00287039]
[1645207812442,0.02981521,2759.1,2758.5,0.00287039]
[1645207812690,0.02981521,2759.1,2757.7,0.90696]
[1645207812691,0.26283037,2759.0,2757.7,0.90696]
[1645207812891,0.90704,2758.8,2757.7,0.00284135]
[1645207813092,0.90704,2758.8,2758.2,0.55121078]
[1645207813290,0.00262279,2758.9,2758.2,0.55121078]
[1645207813492,0.00262279,2758.9,2758.3,0.00284135]
[1645207813889,0.90696,2758.8,2758.3,0.00284135]
[1645207814092,0.90696,2758.8,2758.1,0.145008]
[1645207814093,1.08816,2758.8,2758.1,0.145008]
[1645207814293,1.08831,2758.8,2757.7,0.00284135]
[1645207814489,0.00257851,2758.7,2757.7,0.00284135]
[1645207814990,0.00257851,2758.7,2758.1,0.65218064]
[1645207815791,0.1812,2759.0,2758.1,0.65218064]
[1645207815792,0.00257853,2758.3,2758.1,0.65218064]
[1645207815991,0.00257853,2758.3,2758.2,0.00284135]
[1645207816190,0.00257853,2758.3,2758.1,1.55895064]
[1645207816435,0.00257853,2758.3,2758.1,3.37213064]
[1645207817130,0.00257853,2758.4,2758.2,2.7198772]
[1645207817730,0.00257853,2758.4,2758.2,1.8133172]
[1645207817930,0.00257853,2758.4,2758.1,0.65218064]
[1645207818131,0.00258588,2758.4,2758.0,0.00284135]
[1645207818332,0.00258588,2758.4,2757.8,0.00284135]
[1645207819230,0.00258589,2758.2,2757.8,0.00284135]
[1645207819433,0.00258589,2758.2,2757.6,0.51587214]
[1645207819631,0.00258589,2758.2,2757.7,0.00284135]
[1645207820487,0.00258585,2758.1,2757.7,0.00284135]
[1645207820682,0.00258585,2758.1,2757.6,0.51303079]
[1645207821683,0.00517039,2758.1,2757.6,0.46303079]
[1645207821886,0.00258454,2758.1,2757.6,0.46303079]
[1645207822087,0.00258454,2758.1,2757.5,0.29574135]
[1645207822285,0.00258454,2758.1,2757.3,0.00284135]
[1645207822286,0.1812,2758.0,2757.3,0.00284135]
[1645207822484,0.1812,2758.0,2757.2,0.01]
[1645207823086,0.65064736,2757.4,2757.2,0.01]
[1645207823593,0.31022,2757.2,2756.0,0.66284713]
[1645207823832,0.31022,2757.2,2755.6,0.01490969]
[1645207823833,0.417,2757.1,2755.6,0.01490969]
[1645207824034,0.01283705,2756.9,2755.9,0.00281527]
[1645207824232,0.1812,2757.3,2755.6,1.81764337]
[1645207824434,0.65064736,2757.4,2756.0,0.90742]
[1645207824635,3.5,2757.8,2756.8,0.66967169]
[1645207824833,1.17807787,2758.0,2756.9,0.00281527]
[1645207825233,0.53542277,2758.0,2756.8,0.62248696]
[1645207825435,0.00259294,2757.4,2756.9,0.00280737]
[1645207825636,0.00259294,2757.4,2756.8,0.62248696]
[1645207825835,0.00259294,2757.4,2756.8,0.62449433]
[1645207826034,0.00259294,2757.4,2756.8,0.00280737]
[1645207826234,0.00259294,2757.4,2756.4,0.18400737]
[1645207826635,0.00259329,2757.4,2756.5,0.91611618]
[1645207826836,0.00259329,2757.4,2756.6,0.00280737]
[1645207827238,0.00259329,2757.4,2756.8,0.67599811]
[1645207827687,0.00259321,2757.4,2756.8,0.67599811]
[1645207828488,0.00259321,2757.4,2756.8,0.62599811]
[1645207828686,0.00259321,2757.4,2756.9,1.8140445]
[1645207828886,0.00257439,2757.4,2757.0,0.417]
[1645207829985,0.085156,2758.3,2757.0,0.417]
[1645207830187,0.085156,2758.3,2757.3,1.81378]
[1645207830385,0.085156,2758.3,2757.4,0.00280737]
[1645207830586,0.6426551,2758.4,2757.4,0.00280737]
[1645207830786,0.6426551,2758.5,2757.4,0.00280737]
[1645207830989,0.53185206,2758.3,2757.5,0.62280299]
[1645207831190,0.53185206,2758.3,2757.6,0.00280737]
[1645207831191,0.6426551,2758.3,2757.6,0.00280737]
[1645207831439,0.6426551,2758.3,2757.5,0.417]
[1645207831632,0.8238551,2758.7,2757.5,0.417]
[1645207831833,0.8238551,2758.7,2757.6,0.00280737]
[1645207832032,0.6426551,2758.6,2757.6,0.00280737]
[1645207832435,0.00276934,2758.2,2757.6,0.6742853]
[1645207832633,0.00276934,2758.2,2757.9,0.1]
[1645207833435,0.00276934,2758.2,2757.4,6.2630613]
[1645207833636,0.00276934,2758.2,2757.8,0.53673585]
[1645207833834,0.00276934,2758.2,2757.8,1.85766413]
[1645207834435,0.00276934,2758.2,2757.8,1.3237209]
[1645207834635,0.00276934,2758.2,2757.8,0.417]
[1645207835095,0.00276934,2758.1,2757.8,0.417]
[1645207835283,0.00276934,2758.1,2757.9,0.00279262]
[1645207835484,0.00276934,2758.1,2757.8,1.12562544]
[1645207836084,0.00276934,2758.1,2757.8,2.03236364]
[1645207836085,0.00274832,2758.1,2757.8,2.03236364]
[1645207836285,0.00274832,2758.1,2757.8,2.51356364]
[1645207836485,0.00274832,2758.1,2757.9,1.40798028]
[1645207836685,0.00274832,2758.1,2758.0,5.417]
[1645207836686,4.832e-05,2758.1,2758.0,5.417]
[1645207836887,0.11684497,2759.0,2758.2,0.9064]
[1645207837086,2.46482272,2759.3,2758.5,0.90634]
[1645207837286,2.46482272,2759.3,2758.6,0.717]
[1645207837287,0.11676688,2759.2,2758.6,0.717]
[1645207837485,0.11676688,2759.2,2758.7,0.1812]
[1645207837688,0.11676688,2759.2,2758.8,2.22954]
[1645207838084,0.11676688,2759.2,2758.9,0.66588742]
[1645207838285,0.6426551,2759.9,2758.9,0.66588742]
[1645207838286,0.6426551,2759.9,2759.1,3.0]
[1645207838488,3.5,2760.5,2759.1,3.0]
[1645207838489,1.4208551,2760.2,2759.2,0.5981]
[1645207838684,1.4208551,2760.2,2759.2,3.41031]
[1645207838930,1.4208551,2760.2,2759.2,3.71031]
[1645207838931,0.7782,2760.2,2759.2,3.71031]
[1645207839131,0.7782,2760.2,2759.3,1.20611]
[1645207839329,0.7782,2760.2,2759.7,0.6787842]
[1645207839532,0.7782,2760.2,2759.8,0.417]
[1645207839929,0.6426551,2760.1,2759.1,0.417]
[1645207840130,4.1426551,2760.1,2759.1,0.417]
[1645207840333,0.6426551,2760.1,2759.1,0.417]
[1645207840732,0.6426551,2760.1,2759.3,0.65229052]
[1645207840930,0.00275017,2759.7,2759.3,0.65229052]
[1645207841933,0.00275017,2759.7,2759.1,0.417]
[1645207842132,0.00275018,2759.6,2759.1,0.417]
[1645207842332,0.00275018,2759.6,2758.5,1.81255]
[1645207842333,0.00275018,2759.6,2758.5,2.22955]
[1645207842789,0.00275018,2759.6,2758.7,0.9064104]
[1645207842990,0.1812,2759.5,2758.7,0.6964178]
[1645207843188,0.52489879,2759.6,2758.7,0.6964178]
[1645207843387,0.1812,2759.9,2758.7,0.6964178]
[1645207843388,0.00274875,2759.2,2758.7,0.6964178]
[1645207844189,0.00274875,2759.2,2758.7,1.6028078]
[1645207844388,0.00274875,2759.2,2758.8,0.9063425]
[1645207844589,0.00274876,2759.1,2758.8,0.9063425]
[1645207844789,0.00274876,2759.1,2758.9,1.81242]
[1645207844790,4.876e-05,2759.1,2758.9,1.81242]
[1645207844991,4.876e-05,2759.1,2759.0,16.347]
[1645207845189,0.01099048,2760.2,2759.3,0.90601]
[1645207845389,0.01099048,2760.2,2759.5,3.62407]
[1645207845592,0.01099048,2760.2,2759.5,4.9470829]
[1645207845792,0.6426551,2760.6,2759.8,0.64813016]
[1645207845992,1.20301225,2760.7,2759.7,0.55827738]
[1645207846828,1.20301225,2760.7,2759.8,1.32304]
[1645207846829,0.6426551,2760.7,2759.8,1.32304]
[1645207847029,0.7278111,2761.0,2760.0,1.8118098]
[1645207847230,0.085156,2761.0,2760.0,1.8118098]
[1645207847528,0.1811,2761.2,2760.1,0.417]
[1645207847529,0.8237551,2761.2,2760.1,0.417]
[1645207847728,0.6426551,2761.3,2760.5,0.66340338]
[1645207847928,0.6426551,2761.3,2760.1,0.417]
[1645207847929,0.6426551,2761.3,2760.1,1.417]
[1645207848131,0.6426551,2761.3,2760.5,0.9058478]
[1645207848330,0.6426551,2761.2,2760.4,0.90586]
[1645207848729,0.6426551,2761.3,2760.4,0.90586]
[1645207848931,0.6426551,2761.4,2760.3,2.52363074]
[1645207849332,0.00274938,2760.9,2760.4,0.90585]
[1645207849739,0.00274938,2760.9,2760.5,2.2286693]
[1645207850094,0.00274938,2760.9,2760.6,17.43574]
[1645207850287,0.01099586,2761.4,2760.7,12.43378]
[1645207850484,0.01099586,2761.4,2760.8,16.50866973]
[1645207850691,0.01103198,2761.3,2761.1,1.8108644]
[1645207850988,0.01103198,2761.3,2761.2,0.5979]
[1645207851186,0.01103198,2761.3,2761.2,1.80334]
[1645207851396,0.01103198,2761.3,2761.2,0.5979]
[1645207851587,0.01103198,2761.3,2761.0,1.81101]
[1645207851787,1.29639532,2762.2,2761.0,3.6218748]
[1645207851986,0.6426551,2762.3,2761.3,0.9056262]
[1645207852187,0.1809,2762.6,2761.3,0.9056262]
[1645207852188,0.8235551,2762.4,2761.3,0.9056262]
[1645207852389,0.6426551,2762.4,2761.3,0.9056262]
[1645207852788,0.88184435,2762.6,2761.3,0.9056262]
[1645207852789,0.6426551,2762.5,2761.4,1.8110706]
[1645207852990,0.6426551,2762.5,2761.7,0.56394286]
[1645207853587,0.6426551,2762.5,2761.6,0.9055]
[1645207854058,0.00277694,2762.2,2761.7,0.9054891]
[1645207854256,0.00277694,2762.2,2762.0,0.90522]
[1645207854456,7.694e-05,2762.2,2762.0,1.32222]
[1645207855155,7.694e-05,2762.2,2762.1,0.00759515]
[1645207855356,0.1809,2763.4,2762.1,0.417]
[1645207855557,0.1809,2763.4,2762.3,0.90521]
[1645207855760,0.1809,2763.7,2762.4,0.417]
[1645207855956,2.11984435,2763.9,2762.4,0.417]
[1645207855957,0.1809,2763.8,2762.4,0.417]
[1645207856357,0.1809,2763.8,2762.6,0.90515]
[1645207856557,0.51428861,2763.8,2762.7,3.917]
[1645207856759,0.51428861,2763.8,2762.7,1.32219]
[1645207857057,0.51428861,2763.8,2762.7,0.417]
[1645207857058,0.1809,2763.7,2762.7,0.417]
[1645207857457,0.1809,2763.7,2762.7,0.22455892]
[1645207857886,0.1809,2763.7,2762.7,1.12976892]
[1645207858685,0.1809,2763.7,2762.7,2.03487892]
[1645207858886,0.00277685,2763.3,2762.7,2.03487892]
[1645207859086,0.00277685,2763.3,2762.7,1.12976892]
[1645207859287,0.00277685,2763.3,2762.7,2.93991572]
[1645207859689,0.00277685,2763.3,2762.8,1.0]
[1645207860087,0.00277685,2763.3,2762.9,1.8101]
[1645207860286,0.00277687,2763.1,2762.9,2.2271]
[1645207860487,0.00277687,2763.1,2763.0,11.23]
[1645207860488,7.687e-05,2763.1,2763.0,11.23]
[1645207860689,3.5,2764.7,2763.4,10.93]
[1645207860896,0.48825037,2764.9,2763.5,0.717]
[1645207860897,3.5,2764.8,2763.5,0.717]
[1645207861089,0.43825037,2764.9,2764.2,0.90471]
[1645207861532,0.43825037,2764.9,2764.3,0.9046246]
[1645207861734,0.43825037,2764.9,2764.2,0.90471]
[1645207862634,0.43825037,2764.9,2764.4,0.90453]
[1645207862833,0.43825037,2764.9,2764.5,0.90444]
[1645207863234,0.43825037,2764.9,2764.6,0.65491439]
[1645207863935,0.1808,2766.7,2764.7,1.33446563]
[1645207864135,0.1808,2766.7,2764.8,8.8957]
[1645207864136,0.1308,2766.7,2764.8,8.8957]
[1645207864338,2.4034,2767.1,2765.0,5.4244056]
[1645207864339,2.5841,2767.1,2765.0,5.4244056]
[1645207864633,2.5841,2767.1,2765.2,0.9041904]
[1645207864834,2.5841,2767.1,2765.6,1.80834]
[1645207865096,2.5841,2767.1,2765.0,0.1807]
[1645207865097,0.54489717,2766.2,2765.0,0.1807]
[1645207865390,0.1807,2766.1,2764.8,0.417]
[1645207865989,0.55765977,2765.7,2764.8,0.417]
[1645207866185,0.55765977,2765.7,2764.8,1.32153]
[1645207866385,0.1807,2766.3,2764.8,0.417]
[1645207866786,6.1807,2766.3,2764.8,0.417]
[1645207866988,5.0,2765.7,2764.2,0.417]
[1645207867186,5.0,2765.7,2763.9,0.90484]
[1645207867187,0.1807,2765.6,2763.9,0.90484]
[1645207867587,0.1807,2765.7,2763.9,0.90484]
[1645207867787,0.1807,2765.7,2763.6,0.2532]
[1645207867788,0.0160806,2764.8,2763.6,0.4339]
[1645207867990,0.50520076,2764.7,2763.6,0.2532]
[1645207868190,0.0160806,2764.8,2763.6,0.2532]
[1645207868389,0.1967806,2764.8,2763.6,0.2532]
[1645207869036,0.1967806,2764.8,2763.6,1.15812]
[1645207869332,0.1967806,2764.8,2763.9,0.65891833]
[1645207869632,0.1967806,2764.8,2763.6,1.15812]
[1645207869831,0.0160806,2764.8,2763.6,0.2532]
[1645207870034,5.0,2764.6,2763.6,0.2532]
[1645207870233,3.6807,2764.5,2763.6,0.2532]
[1645207870433,3.9807,2764.5,2763.6,0.2532]
[1645207870636,0.67866639,2764.3,2763.6,0.2532]
[1645207870934,5.90537,2764.2,2763.1,0.1807]
[1645207871143,0.90546,2763.8,2763.1,0.1807]
[1645207871335,1.20546,2763.8,2763.1,0.1807]
[1645207871533,5.0,2763.5,2761.8,1.8107175]
[1645207871734,5.0,2763.5,2761.9,0.4672]
[1645207871735,0.1809,2763.4,2761.9,0.4672]
[1645207871935,0.1809,2763.4,2762.1,0.57357931]
[1645207872136,1.81098,2763.6,2762.2,1.8106185]
[1645207872137,0.1809,2763.6,2762.2,1.8106185]
[1645207872336,3.917,2763.9,2762.1,0.57357931]
[1645207872337,0.1809,2763.8,2762.1,0.57357931]
[1645207872886,0.1809,2763.8,2762.8,0.56044823]
[1645207873292,0.90536,2763.7,2762.3,0.90534]
[1645207873485,0.90536,2763.7,2762.1,1.8105388]
[1645207873690,0.1809,2763.6,2762.0,1.8107]
[1645207873885,3.6809,2763.6,2762.0,1.8107]
[1645207874287,4.58628,2763.6,2762.1,0.9053771]
[1645207874486,4.58628,2763.6,2762.0,1.8107]
[1645207874687,4.88628,2763.6,2762.5,0.60140761]
[1645207874885,1.38628,2763.6,2762.0,1.8107]
[1645207875086,4.88628,2763.6,2762.0,1.8107]
[1645207875288,0.90546,2763.4,2762.0,1.8107]
[1645207875891,3.9809,2763.6,2762.2,0.90537]
[1645207876090,0.60386227,2763.4,2762.3,0.50466344]
[1645207876731,0.60386227,2763.4,2762.3,0.51763644]
[1645207877332,0.60386227,2763.4,2762.3,0.012973]
[1645207878532,0.60386227,2763.4,2762.4,0.66092224]
[1645207878733,0.90549,2763.3,2762.4,0.66092224]
[1645207878935,1.99179,2763.7,2762.4,0.66092224]
[1645207878936,0.4809,2763.7,2762.4,0.66092224]
[1645207879134,0.1809,2763.9,2762.4,0.66092224]
[1645207879733,1.08621,2763.9,2762.4,0.66092224]
[1645207879932,3.0,2763.3,2762.5,0.90525]
[1645207880187,3.0,2763.3,2762.4,0.66092224]
[1645207880388,0.62390131,2763.7,2762.4,0.66092224]
[1645207880787,1.5,2763.2,2762.4,0.66092224]
[1645207881187,1.5,2763.2,2762.5,0.01293226]
[1645207882488,1.5,2763.2,2762.5,0.91822226]
[1645207882689,1.5,2763.2,2762.6,1.5031239]
[1645207882890,1.5,2763.2,2762.7,0.3]
[1645207883087,1.5,2763.2,2762.8,0.417]
[1645207883588,1.5,2763.2,2762.8,3.1322396]
[1645207883843,1.5,2763.2,2763.1,0.58105083]
[1645207886444,1.5,2763.2,2763.1,0.88105083]
[1645207886646,1.5,2763.2,2763.1,0.58105083]
[1645207887045,1.5,2763.2,2763.1,0.5796003]
[1645207887784,1.5,2763.2,2763.0,1.90507]
[1645207887985,1.5,2763.2,2762.9,1.81013]
[1645207888387,1.5,2763.2,2762.8,1.82302077]